bitfinex-derivatives/quotes_BTCF0:USTF0_20241223
["timestamp","ask_amount","ask_price","bid_price","bid_amount"]
[1734977251181,0.003,93683.0,93680.0,0.00160099]
[1734977251480,0.005,93683.0,93680.0,0.00160099]
[1734977251881,0.3608,93682.0,93680.0,0.00160099]
[1734977252180,0.5679,93682.0,93680.0,0.00160099]
[1734977252383,0.3608,93682.0,93680.0,0.00160099]
[1734977253973,0.10674523,93681.0,93680.0,0.00160099]
[1734977254283,0.3618,93682.0,93670.0,0.35928]
[1734977254489,0.3608,93671.0,93670.0,0.35928]
[1734977255087,0.3618,93682.0,93670.0,0.35928]
[1734977255286,0.3608,93682.0,93680.0,0.001]
[1734977256371,0.10674523,93681.0,93680.0,0.001]
[1734977256781,0.10674523,93681.0,93670.0,0.28628]
[1734977256986,0.3638,93671.0,93670.0,0.28628]
[1734977257588,0.3608,93671.0,93670.0,0.28628]
[1734977258488,0.3648,93671.0,93670.0,0.28628]
[1734977258786,0.3718,93671.0,93670.0,0.28728]
[1734977258983,0.011,93671.0,93670.0,0.28728]
[1734977259379,0.011,93671.0,93670.0,0.64808]
[1734977259686,0.011,93671.0,93670.0,0.28728]
[1734977260190,0.012,93671.0,93670.0,0.28728]
[1734977260679,0.004,93671.0,93670.0,0.28628]
[1734977260879,0.006,93671.0,93670.0,0.28628]
[1734977261287,0.011,93671.0,93670.0,0.28728]
[1734977261489,0.009,93671.0,93670.0,0.28728]
[1734977261675,0.014,93671.0,93670.0,0.29964605]
[1734977262288,0.014,93671.0,93670.0,0.22564605]
[1734977262786,0.011,93671.0,93670.0,0.22564605]
[1734977263179,0.3608,93701.0,93670.0,0.58644605]
[1734977263379,0.3608,93701.0,93680.0,0.13467207]
[1734977263783,0.3608,93693.0,93678.0,0.3608]
[1734977265293,0.3608,93693.0,93678.0,0.3628]
[1734977266377,0.3608,93693.0,93678.0,0.3688]
[1734977266688,0.3608,93693.0,93678.0,0.2948]
[1734977266888,0.3608,93693.0,93678.0,0.2978]
[1734977267287,0.3608,93690.0,93680.0,0.13467207]
[1734977267689,0.3608,93690.0,93678.0,0.2978]
[1734977267892,0.3608,93690.0,93678.0,0.3008]
[1734977268188,0.3608,93680.0,93678.0,0.014]
[1734977269492,0.3608,93680.0,93678.0,0.005]
[1734977269790,0.3608,93680.0,93670.0,0.58544605]
[1734977270592,0.3628,93680.0,93670.0,0.58544605]
[1734977271293,0.3608,93680.0,93670.0,0.58544605]
[1734977272194,0.3608,93680.0,93670.0,0.77355212]
[1734977272390,0.58333036,93688.0,93670.0,0.77355212]
[1734977272598,0.3608,93677.0,93670.0,0.22464605]
[1734977272789,0.3608,93677.0,93655.0,0.2041]
[1734977273094,0.3608,93677.0,93655.0,0.21603836]
[1734977273095,0.3608,93658.0,93655.0,0.21603836]
[1734977274095,0.3608,93658.0,93655.0,0.22503836]
[1734977274290,0.3608,93658.0,93655.0,0.22603836]
[1734977274491,0.3608,93658.0,93655.0,0.02193836]
[1734977275083,0.3628,93658.0,93655.0,0.02093836]
[1734977275290,0.3628,93658.0,93655.0,0.009]
[1734977275592,0.3628,93658.0,93640.0,0.2153]
[1734977275795,0.3608,93644.0,93640.0,0.2153]
[1734977276403,0.3608,93644.0,93640.0,0.22728803]
[1734977276592,0.3608,93644.0,93640.0,0.01198803]
[1734977276790,0.3608,93644.0,93640.0,0.002]
[1734977277392,0.3608,93644.0,93640.0,0.003]
[1734977278404,0.3608,93658.0,93642.0,0.05345]
[1734977278696,0.3608,93658.0,93643.0,0.215]
[1734977278898,0.3608,93658.0,93648.0,0.13467207]
[1734977279100,0.3608,93658.0,93649.0,0.2207]
[1734977279788,0.3608,93677.0,93649.0,0.2207]
[1734977280205,0.001,93658.0,93649.0,0.2207]
[1734977280588,0.001,93658.0,93652.0,0.3608]
[1734977281004,0.3608,93669.0,93661.0,0.05344]
[1734977281193,0.3608,93677.0,93668.0,0.3608]
[1734977281700,0.3608,93677.0,93654.0,0.1385]
[1734977282204,0.3608,93677.0,93659.0,0.3608]
[1734977283104,0.3608,93677.0,93654.0,0.1475]
[1734977283404,0.3608,93669.0,93659.0,0.007]
[1734977283795,0.3608,93669.0,93668.0,0.005]
[1734977284605,0.3618,93669.0,93661.0,0.053439]
[1734977285303,0.3618,93669.0,93659.0,0.3678]
[1734977285505,0.3618,93669.0,93659.0,0.3608]
[1734977286207,0.3608,93669.0,93659.0,0.3608]
[1734977286405,0.3638,93669.0,93659.0,0.3608]
[1734977286706,0.3638,93669.0,93661.0,0.001]
[1734977287007,0.3608,93669.0,93661.0,0.001]
[1734977287310,0.3608,93669.0,93662.0,0.053439]
[1734977287502,0.34472725,93677.0,93661.0,0.001]
[1734977287806,0.3608,93688.0,93675.0,0.053431]
[1734977288000,0.22197035,93690.0,93676.0,0.481331]
[1734977288199,0.22197035,93690.0,93676.0,0.842131]
[1734977288800,0.3608,93696.0,93676.0,0.7887]
[1734977289508,0.3608,93696.0,93676.0,0.842131]
[1734977289703,0.3608,93696.0,93677.0,0.05343]
[1734977290305,0.3608,93688.0,93676.0,0.81033458]
[1734977290511,0.3608,93688.0,93676.0,0.80913458]
[1734977290700,0.3608,93698.0,93684.0,0.3608]
[1734977290902,0.3608,93698.0,93689.0,0.053424]
[1734977292012,0.28427162,93694.0,93689.0,0.053424]
[1734977292201,0.28427162,93694.0,93684.0,0.3608]
[1734977292402,0.28427162,93694.0,93684.0,0.414226]
[1734977293103,0.28427162,93694.0,93684.0,0.3608]
[1734977293613,0.25543309,93687.0,93684.0,0.3608]
[1734977294213,0.25543309,93687.0,93684.0,0.414226]
[1734977294608,0.25543309,93686.0,93684.0,0.3608]
[1734977295807,0.25543309,93686.0,93676.0,0.94087458]
[1734977295808,0.25543309,93686.0,93676.0,0.37367458]
[1734977296010,0.25543309,93686.0,93676.0,0.37243458]
[1734977296402,0.25743309,93686.0,93676.0,0.37243458]
[1734977297019,0.25743309,93686.0,93676.0,0.23393458]
[1734977297209,0.22346237,93682.0,93676.0,0.23393458]
[1734977298512,0.22346237,93683.0,93682.0,0.053428]
[1734977299000,0.22346237,93683.0,93677.0,0.05343]
[1734977299199,0.22346237,93683.0,93678.0,0.05343]
[1734977299500,0.25643309,93686.0,93676.0,0.23393458]
[1734977299903,0.001,93682.0,93676.0,0.23393458]
[1734977300608,0.3618,93683.0,93665.0,0.1385]
[1734977300808,0.3618,93683.0,93658.0,0.3608]
[1734977300809,0.3608,93675.0,93658.0,0.3608]
[1734977301211,0.3608,93675.0,93658.0,0.37308321]
[1734977301717,0.3618,93683.0,93658.0,0.37308321]
[1734977301718,0.001,93683.0,93676.0,0.053431]
[1734977302017,0.22346237,93688.0,93679.0,0.3608]
[1734977302206,0.001,93682.0,93681.0,0.053428]
[1734977302617,0.22346237,93688.0,93681.0,0.053428]
[1734977302803,0.22346237,93688.0,93687.0,0.3608]
[1734977303612,0.16202207,93695.0,93688.0,0.1385]
[1734977303818,0.05555533,93709.0,93703.0,0.053415]
[1734977304121,0.05555533,93709.0,93708.0,0.3608]
[1734977304915,0.2123,93732.0,93708.0,0.3608]
[1734977305322,0.2123,93732.0,93720.0,0.13467207]
[1734977305621,0.2123,93732.0,93716.0,0.3608]
[1734977306514,0.2123,93732.0,93720.0,0.003]
[1734977306715,0.2123,93732.0,93716.0,0.2898]
[1734977306910,0.3608,93729.0,93716.0,0.2898]
[1734977307416,0.005,93732.0,93719.0,0.13467207]
[1734977307612,0.005,93732.0,93724.0,0.3608]
[1734977308319,0.001,93732.0,93724.0,0.414204]
[1734977308513,0.002,93729.0,93724.0,0.414204]
[1734977308914,0.001,93729.0,93724.0,0.421204]
[1734977309521,0.01155492,93739.0,93727.0,0.053404]
[1734977309709,0.4054,93759.0,93728.0,0.2192]
[1734977309910,0.4054,93759.0,93730.0,0.13467207]
[1734977310320,0.2198,93759.0,93738.0,0.18807207]
[1734977310823,0.2198,93759.0,93733.0,0.3608]
[1734977310824,0.3608,93752.0,93733.0,0.3608]
[1734977311009,0.3608,93752.0,93731.0,0.3608]
[1734977311325,0.3608,93744.0,93731.0,0.3608]
[1734977311818,0.3608,93744.0,93728.0,0.2192]
[1734977312522,0.3618,93744.0,93730.0,0.13467207]
[1734977312906,0.3608,93736.0,93728.0,0.2192]
[1734977313409,0.7216,93736.0,93713.0,0.3608]
[1734977313616,0.3608,93725.0,93713.0,0.3608]
[1734977313915,0.3608,93727.0,93719.0,0.013269]
[1734977314314,0.3608,93736.0,93719.0,0.013269]
[1734977315212,0.3648,93736.0,93719.0,0.020269]
[1734977315616,0.3648,93736.0,93721.0,0.3608]
[1734977316123,0.3628,93736.0,93721.0,0.3608]
[1734977316820,0.3608,93736.0,93721.0,0.41521]
[1734977317221,0.3608,93736.0,93721.0,0.05441]
[1734977317425,0.3608,93736.0,93721.0,0.001]
[1734977317918,0.3608,93736.0,93721.0,0.004]
[1734977318323,0.3638,93736.0,93721.0,0.003]
[1734977318525,0.3638,93736.0,93720.0,0.194]
[1734977318927,0.3608,93736.0,93720.0,0.247411]
[1734977319225,0.3608,93736.0,93721.0,0.006]
[1734977319828,0.3638,93736.0,93721.0,0.004]
[1734977320624,0.3608,93728.0,93721.0,0.004]
[1734977320823,0.3608,93728.0,93719.0,0.013269]
[1734977321821,0.3608,93728.0,93721.0,0.002]
[1734977322531,0.3608,93728.0,93719.0,0.013269]
[1734977322723,0.3628,93728.0,93719.0,0.013269]
[1734977323332,0.3608,93728.0,93719.0,0.013269]
[1734977323535,0.3628,93728.0,93719.0,0.013269]
[1734977327033,0.3608,93720.0,93719.0,0.013269]
[1734977327231,0.3608,93720.0,93719.0,0.00160055]
[1734977327427,0.3608,93720.0,93705.0,0.01207167]
[1734977327624,0.3608,93706.0,93684.0,0.18960094]
[1734977327822,0.3608,93694.0,93686.0,0.05343]
[1734977328028,0.33944,93694.0,93690.0,0.1464461]
[1734977328827,0.33944,93694.0,93690.0,0.1584461]
[1734977329538,0.33944,93694.0,93690.0,0.1544461]
[1734977329839,0.33944,93694.0,93690.0,0.02277403]
[1734977330331,0.33944,93694.0,93690.0,0.01477403]
[1734977330540,0.33944,93694.0,93690.0,0.02077403]
[1734977330728,0.14666526,93720.0,93690.0,0.02077403]
[1734977330928,0.3608,93706.0,93700.0,0.13467207]
[1734977331134,0.7216,93706.0,93700.0,0.13467207]
[1734977331939,0.7216,93706.0,93690.0,0.02077403]
[1734977332233,0.3608,93696.0,93690.0,0.01477403]
[1734977332638,0.3608,93696.0,93690.0,0.01177403]
[1734977332936,0.3608,93696.0,93687.0,0.3608]
[1734977333333,0.3608,93696.0,93687.0,0.41423]
[1734977333637,0.3608,93696.0,93690.0,0.006]
[1734977334236,0.3608,93696.0,93688.0,0.053429]
[1734977334537,0.3608,93696.0,93690.0,0.003]
[1734977334939,0.3608,93706.0,93690.0,0.009]
[1734977335135,0.3608,93706.0,93696.0,0.13467207]
[1734977335440,0.1872,93727.0,93707.0,0.053419]
[1734977335637,0.1872,93727.0,93713.0,0.3608]
[1734977336036,0.10673155,93726.0,93713.0,0.3608]
[1734977336235,0.3608,93717.0,93705.0,0.3608]
[1734977336536,0.3608,93717.0,93705.0,0.37253038]
[1734977336736,0.3608,93717.0,93705.0,0.01173038]
[1734977336937,0.3608,93717.0,93692.0,0.3608]
[1734977337832,0.3608,93717.0,93696.0,0.002]
[1734977338033,0.3608,93717.0,93698.0,0.14984939]
[1734977338429,0.3608,93717.0,93698.0,0.15284939]
[1734977338634,0.3608,93717.0,93698.0,0.15384939]
[1734977339231,0.3608,93717.0,93698.0,0.01534939]
[1734977339433,0.3608,93717.0,93703.0,0.3608]
[1734977341039,0.3608,93717.0,93703.0,0.3618]
[1734977341835,0.3608,93709.0,93703.0,0.001]
[1734977342031,0.1586,93708.0,93703.0,0.001]
[1734977344650,0.3608,93709.0,93703.0,0.001]
[1734977346042,0.6608,93709.0,93692.0,0.3608]
[1734977346252,0.7216,93700.0,93671.0,0.1572]
[1734977346444,0.3608,93685.0,93680.0,0.1344762]
[1734977346750,0.3064,93699.0,93683.0,0.3608]
[1734977347134,0.3064,93699.0,93692.0,0.006]
[1734977347339,0.3064,93699.0,93692.0,0.008]
[1734977347734,0.3064,93699.0,93692.0,0.002]
[1734977348140,0.3064,93699.0,93684.0,0.01260094]
[1734977348746,0.3064,93699.0,93684.0,0.01060094]
[1734977349257,0.1566,93699.0,93684.0,0.00160094]
[1734977349751,0.3608,93709.0,93689.0,0.1344762]
[1734977349955,0.3608,93709.0,93690.0,0.4952762]
[1734977350154,0.3608,93717.0,93691.0,0.1491]
[1734977351746,0.3608,93717.0,93691.0,0.0751]
[1734977352750,0.1344762,93710.0,93691.0,0.0751]
[1734977353151,0.3608,93717.0,93690.0,0.3608]
[1734977353449,0.3618,93717.0,93690.0,0.3608]
[1734977353651,0.3628,93717.0,93690.0,0.3608]
[1734977353847,0.3628,93717.0,93690.0,0.4952762]
[1734977354157,0.3608,93717.0,93690.0,0.4952762]
[1734977354357,0.3638,93717.0,93690.0,0.4952762]
[1734977354959,0.3628,93717.0,93690.0,0.4952762]
[1734977355751,0.3628,93717.0,93700.0,0.1344762]
[1734977355951,0.3608,93717.0,93701.0,0.1562]
[1734977356255,0.3608,93720.0,93709.0,0.3608]
[1734977356566,0.3608,93741.0,93719.0,0.3608]
[1734977356858,0.10671959,93739.0,93719.0,0.2868]
[1734977357159,0.3608,93741.0,93719.0,0.2868]
[1734977357553,0.10668942,93740.0,93719.0,0.2868]
[1734977359356,0.10668942,93740.0,93719.0,0.2878]
[1734977359752,0.10868942,93740.0,93719.0,0.2868]
[1734977359953,0.3608,93720.0,93709.0,0.01183873]
[1734977360258,0.3608,93710.0,93700.0,0.3608]
[1734977360465,0.3608,93710.0,93701.0,0.16789584]
[1734977360662,0.3608,93702.0,93701.0,0.1562]
[1734977360956,0.3608,93702.0,93693.0,0.1525]
[1734977360957,0.3608,93702.0,93689.0,0.1621]
[1734977361163,0.3608,93702.0,93698.0,0.01161688]
[1734977361857,0.3608,93702.0,93699.0,0.28508]
[1734977362258,0.3628,93702.0,93699.0,0.28508]
[1734977363158,0.3658,93702.0,93699.0,0.28508]
[1734977363657,0.3678,93702.0,93699.0,0.28608]
[1734977364455,0.3638,93702.0,93699.0,0.28608]
[1734977364655,0.3678,93702.0,93699.0,0.28608]
[1734977365059,0.3678,93702.0,93699.0,0.001]
[1734977365259,0.26972301,93701.0,93675.0,0.1565]
[1734977365464,0.3608,93690.0,93676.0,0.01137233]
[1734977365657,0.3608,93690.0,93663.0,0.1565]
[1734977365658,0.3608,93677.0,93663.0,0.1565]
[1734977366966,0.3608,93677.0,93663.0,0.1615]
[1734977367159,0.3608,93677.0,93663.0,0.1728944]
[1734977367764,0.3608,93677.0,93663.0,0.1698944]
[1734977367958,0.3628,93677.0,93663.0,0.1698944]
[1734977368158,0.08965131,93673.0,93663.0,0.1698944]
[1734977368360,0.08965131,93673.0,93663.0,0.1678944]
[1734977368859,0.3608,93669.0,93663.0,0.1678944]
[1734977369253,0.3608,93669.0,93662.0,0.3608]
[1734977369856,0.3608,93669.0,93652.0,0.1608]
[1734977370165,0.3638,93669.0,93652.0,0.1608]
[1734977370865,0.3658,93669.0,93652.0,0.1608]
[1734977371061,0.3658,93669.0,93658.0,0.01145378]
[1734977371365,0.3658,93669.0,93646.0,0.148]
[1734977371366,0.3608,93660.0,93645.0,0.01135313]
[1734977371659,0.3608,93660.0,93637.0,0.00160218]
[1734977371660,0.3608,93646.0,93637.0,0.00160218]
[1734977371864,0.3608,93638.0,93621.0,0.2918]
[1734977372064,0.3608,93623.0,93609.0,0.3608]
[1734977372253,0.3608,93614.0,93602.0,0.1394]
[1734977372457,0.3608,93614.0,93601.0,0.1418]
[1734977372662,0.3608,93604.0,93601.0,0.1418]
[1734977372869,0.3608,93614.0,93601.0,0.15332355]
[1734977373660,0.3608,93614.0,93601.0,0.15932355]
[1734977374257,0.3608,93614.0,93601.0,0.01752355]
[1734977374258,0.10682904,93613.0,93601.0,0.01752355]
[1734977374559,0.3608,93614.0,93601.0,0.01752355]
[1734977374758,0.3608,93614.0,93601.0,0.02052355]
[1734977376462,0.3608,93625.0,93606.0,0.3608]
[1734977377558,0.3608,93625.0,93610.0,0.13474413]
[1734977378969,0.3608,93625.0,93610.0,0.13574413]
[1734977379471,0.3608,93625.0,93610.0,0.13774413]
[1734977379974,0.3608,93625.0,93610.0,0.003]
[1734977381865,0.3608,93616.0,93610.0,0.003]
[1734977382066,0.3608,93615.0,93610.0,0.003]
[1734977382376,0.6422134,93615.0,93584.0,0.01128434]
[1734977382672,0.6422134,93615.0,93558.0,0.72016]
[1734977382673,0.7216,93589.0,93558.0,0.72016]
[1734977382873,0.26948826,93600.0,93546.0,0.3608]
[1734977382874,0.3608,93564.0,93551.0,0.2717]
[1734977383169,0.13474413,93561.0,93546.0,0.3608]
[1734977383375,0.6608,93564.0,93546.0,0.3608]
[1734977383376,0.36136001,93564.0,93546.0,0.3608]
[1734977383566,0.3608,93564.0,93546.0,0.37243774]
[1734977384166,0.3608,93564.0,93550.0,0.13474413]
[1734977384774,0.3608,93573.0,93555.0,0.053505]
[1734977384968,0.3608,93573.0,93560.0,0.13474413]
[1734977385164,0.3608,93573.0,93556.0,0.2607]
[1734977385878,0.3618,93573.0,93556.0,0.2607]
[1734977386371,0.001,93573.0,93567.0,0.3608]
[1734977386769,0.002,93573.0,93567.0,0.2868]
[1734977387169,0.002,93573.0,93567.0,0.340298]
[1734977387376,0.001,93573.0,93567.0,0.340298]
[1734977387577,0.004,93573.0,93567.0,0.340298]
[1734977387969,0.008,93573.0,93567.0,0.340298]
[1734977388470,0.001,93573.0,93567.0,0.340298]
[1734977388772,0.004,93573.0,93567.0,0.340298]
[1734977390680,0.004,93573.0,93567.0,0.2868]
[1734977390870,0.3608,93585.0,93567.0,0.2868]
[1734977391069,0.3608,93585.0,93578.0,0.053492]
[1734977392777,0.3608,93585.0,93577.0,0.121692]
[1734977392778,0.3608,93611.0,93584.0,0.3608]
[1734977393084,0.3608,93611.0,93592.0,0.3608]
[1734977394671,0.3608,93618.0,93600.0,0.13474413]
[1734977395185,0.7216,93608.0,93592.0,0.006]
[1734977395382,0.3608,93593.0,93592.0,0.006]
[1734977395571,0.3608,93593.0,93592.0,0.002]
[1734977395880,0.3608,93593.0,93592.0,0.01]
[1734977396075,0.3608,93593.0,93592.0,0.002]
[1734977396276,0.3608,93593.0,93592.0,0.006]
[1734977396477,0.3608,93608.0,93592.0,0.006]
[1734977396874,0.3608,93608.0,93590.0,0.06674413]
[1734977397074,0.3608,93608.0,93592.0,0.003]
[1734977397673,0.3608,93608.0,93590.0,0.06674413]
[1734977397883,0.003,93593.0,93590.0,0.06674413]
[1734977398074,0.003,93593.0,93586.0,0.053487]
[1734977398273,0.3628,93608.0,93586.0,0.053487]
[1734977398473,0.3668,93608.0,93586.0,0.053487]
[1734977398877,0.3628,93608.0,93586.0,0.053487]
[1734977399077,0.3628,93608.0,93590.0,0.004]
[1734977399985,0.3628,93608.0,93598.0,0.13474413]
[1734977400186,0.3608,93608.0,93598.0,0.13474413]
[1734977400383,0.3608,93608.0,93591.0,0.60514]
[1734977400587,0.3608,93599.0,93586.0,0.001]
[1734977400880,0.3608,93587.0,93586.0,0.001]
[1734977401088,0.3608,93587.0,93574.0,0.3608]
[1734977401582,0.3608,93587.0,93577.0,0.13474413]
[1734977401775,0.003,93608.0,93586.0,0.3638]
[1734977402089,0.003,93608.0,93600.0,0.053479]
[1734977402383,0.003,93608.0,93601.0,0.300379]
[1734977402583,0.3608,93620.0,93601.0,0.300379]
[1734977402978,0.3608,93620.0,93603.0,0.053478]
[1734977403686,0.001,93608.0,93603.0,0.053478]
[1734977403880,0.001,93608.0,93601.0,0.2469]
[1734977403881,0.001,93608.0,93604.0,0.053477]
[1734977404077,0.001,93608.0,93601.0,0.2469]
[1734977404278,0.3648,93620.0,93601.0,0.2469]
[1734977404484,0.3648,93620.0,93607.0,0.053475]
[1734977404685,0.3728,93620.0,93603.0,0.001]
[1734977405491,0.002,93608.0,93601.0,0.2469]
[1734977406087,0.003,93608.0,93601.0,0.2469]
[1734977406790,0.003,93608.0,93601.0,0.0495]
[1734977406984,0.3608,93604.0,93603.0,0.001]
[1734977407580,0.3608,93604.0,93601.0,0.008]
[1734977407893,0.3608,93604.0,93601.0,0.011]
[1734977408080,0.3608,93604.0,93601.0,0.003]
[1734977408280,0.3648,93604.0,93601.0,0.003]
[1734977408779,0.22513475,93603.0,93579.0,0.01142575]
[1734977408979,0.3608,93585.0,93574.0,0.1251]
[1734977409490,0.3608,93585.0,93574.0,0.178594]
[1734977410083,0.3608,93585.0,93574.0,0.1383891]
[1734977410284,0.3608,93585.0,93577.0,0.053493]
[1734977410488,0.3608,93594.0,93582.0,0.05349]
[1734977410680,0.3608,93594.0,93580.0,0.13474413]
[1734977410992,0.003,93585.0,93580.0,0.13474413]
[1734977411191,0.003,93585.0,93580.0,0.18823513]
[1734977411486,0.003,93585.0,93579.0,0.3608]
[1734977411487,0.009,93585.0,93579.0,0.3608]
[1734977411688,0.009,93585.0,93577.0,0.001]
[1734977411991,0.009,93585.0,93574.0,0.0633891]
[1734977412594,0.008,93585.0,93582.0,0.003]
[1734977413188,0.002,93585.0,93574.0,0.0633891]
[1734977413482,0.002,93585.0,93575.0,0.053494]
[1734977413690,0.002,93585.0,93583.0,0.053489]
[1734977414084,0.002,93585.0,93577.0,0.3608]
[1734977414085,0.004,93585.0,93577.0,0.3608]
[1734977414276,0.3608,93594.0,93577.0,0.3608]
[1734977414277,0.35900796,93594.0,93578.0,0.053492]
[1734977414482,0.35900796,93594.0,93591.0,0.053485]
[1734977414684,0.35900796,93594.0,93592.0,0.2493]
[1734977415088,0.3608,93612.0,93592.0,0.2493]
[1734977415089,0.3608,93604.0,93592.0,0.2493]
[1734977415391,0.3608,93612.0,93596.0,0.3608]
[1734977415581,0.3608,93612.0,93601.0,0.053479]
[1734977417297,0.3608,93612.0,93597.0,0.1289]
[1734977417496,0.3638,93612.0,93597.0,0.1289]
[1734977417696,0.28565922,93633.0,93627.0,0.053464]
[1734977417887,0.28565922,93633.0,93623.0,0.13474413]
[1734977418796,0.3608,93644.0,93630.0,0.3608]
[1734977419188,0.3608,93636.0,93623.0,0.13474413]
[1734977419394,0.3608,93636.0,93621.0,0.3608]
[1734977419692,0.003,93633.0,93621.0,0.37211338]
[1734977420097,0.003,93633.0,93621.0,0.01131338]
[1734977420293,0.003,93633.0,93623.0,0.005]
[1734977420498,0.3628,93636.0,93623.0,0.058466]
[1734977420690,0.3628,93636.0,93620.0,0.362]
[1734977420896,0.002,93633.0,93620.0,0.3608]
[1734977421294,0.3628,93636.0,93620.0,0.49554413]
[1734977421491,0.3628,93636.0,93623.0,0.004]
[1734977421691,0.3628,93636.0,93625.0,0.053465]
[1734977421997,0.3608,93636.0,93621.0,0.002]
[1734977422898,0.05346,93635.0,93625.0,0.054465]
[1734977423092,0.001,93633.0,93625.0,0.054465]
[1734977423598,0.05346,93635.0,93625.0,0.053465]
[1734977423899,0.053462,93631.0,93621.0,0.011]
[1734977424092,0.053462,93631.0,93623.0,0.053466]
[1734977424396,0.059461,93633.0,93625.0,0.001]
[1734977424900,0.053465,93627.0,93625.0,0.001]
[1734977425400,0.053462,93632.0,93625.0,0.001]
[1734977425799,0.053463,93630.0,93625.0,0.001]
[1734977426199,0.053463,93630.0,93620.0,0.49166223]
[1734977426499,0.053463,93630.0,93623.0,0.001]
[1734977426895,0.059463,93630.0,93625.0,0.001]
[1734977427095,0.053464,93628.0,93625.0,0.001]
[1734977427396,0.053464,93628.0,93620.0,0.47220923]
[1734977427397,0.3608,93626.0,93620.0,0.0127331]
[1734977427595,0.3608,93626.0,93612.0,0.127]
[1734977427799,0.1218,93625.0,93612.0,0.127]
[1734977428104,0.1218,93625.0,93612.0,0.1385694]
[1734977428302,0.053471,93617.0,93612.0,0.1385694]
[1734977428598,0.1218,93625.0,93612.0,0.1385694]
[1734977428802,0.053472,93614.0,93612.0,0.1385694]
[1734977428996,0.053472,93614.0,93600.0,0.13474413]
[1734977428997,0.3608,93617.0,93600.0,0.13474413]
[1734977429190,0.053472,93613.0,93612.0,0.004]
[1734977429794,0.053483,93595.0,93591.0,0.121]
[1734977429989,0.053484,93593.0,93591.0,0.121]
[1734977430395,0.053484,93593.0,93591.0,0.1323876]
[1734977430593,0.3608,93597.0,93581.0,0.3608]
[1734977430901,0.053487,93587.0,93579.0,0.1203]
[1734977431097,0.053487,93587.0,93580.0,0.01122978]
[1734977431295,0.053487,93587.0,93579.0,0.1203]
[1734977431705,0.28565922,93581.0,93579.0,0.1203]
[1734977433104,0.005,93581.0,93579.0,0.1203]
[1734977433398,0.005,93581.0,93579.0,0.13165631]
[1734977433593,0.053495,93574.0,93571.0,0.72144]
[1734977433797,0.053495,93574.0,93573.0,0.01280724]
[1734977434104,0.053495,93574.0,93573.0,0.00160291]
[1734977434401,0.053495,93574.0,93544.0,0.3608]
[1734977434610,0.053495,93574.0,93550.0,0.13474413]
[1734977434611,0.053504,93557.0,93550.0,0.13474413]
[1734977434897,0.3608,93564.0,93553.0,0.053506]
[1734977435300,0.3608,93564.0,93550.0,0.13474413]
[1734977435706,0.25471272,93555.0,93550.0,0.13474413]
[1734977436199,0.25471272,93555.0,93553.0,0.002]
[1734977436406,0.25471272,93555.0,93553.0,0.008]
[1734977436806,0.25471272,93557.0,93553.0,0.002]
[1734977437007,0.054506,93555.0,93553.0,0.002]
[1734977437907,0.053508,93551.0,93550.0,0.01]
[1734977438308,0.053508,93551.0,93550.0,0.021057]
[1734977438504,0.053508,93551.0,93550.0,0.003]
[1734977438697,0.053508,93551.0,93543.0,0.1294]
[1734977438894,0.001,93555.0,93544.0,0.3608]
[1734977439101,0.34913905,93578.0,93552.0,0.3608]
[1734977439301,0.34913905,93578.0,93561.0,0.3608]
[1734977439604,0.053496,93571.0,93561.0,0.414302]
[1734977439806,0.053496,93571.0,93562.0,0.129]
[1734977440807,0.053493,93577.0,93562.0,0.129]
[1734977441109,0.35013905,93578.0,93564.0,0.0535]
[1734977441406,0.053497,93570.0,93562.0,0.13991834]
[1734977441809,0.34913905,93578.0,93562.0,0.13991834]
[1734977442109,0.053499,93566.0,93562.0,0.13991834]
[1734977442409,0.053496,93573.0,93564.0,0.001]
[1734977442602,0.34913905,93578.0,93568.0,0.053498]
[1734977442800,0.34913905,93578.0,93568.0,0.18824213]
[1734977443700,0.34913905,93578.0,93568.0,0.13474413]
[1734977443900,0.34913905,93578.0,93569.0,0.053497]
[1734977444196,0.053494,93576.0,93570.0,0.414297]
[1734977444906,0.053494,93576.0,93571.0,0.053496]
[1734977445111,0.002,93578.0,93574.0,0.053494]
[1734977445409,0.002,93578.0,93575.0,0.053494]
[1734977445610,0.414291,93581.0,93575.0,0.053494]
[1734977445802,0.003,93576.0,93575.0,0.053494]
[1734977446106,0.414288,93587.0,93570.0,0.3608]
[1734977446299,0.3608,93587.0,93585.0,0.053488]
[1734977447002,0.414288,93587.0,93585.0,0.053488]
[1734977447405,0.053488,93587.0,93585.0,0.053488]
[1734977447602,0.3608,93600.0,93579.0,0.3608]
[1734977447805,0.053482,93596.0,93590.0,0.13474413]
[1734977448210,0.3608,93608.0,93590.0,0.13474413]
[1734977448410,0.053478,93604.0,93603.0,0.053477]
[1734977448607,0.3608,93619.0,93598.0,0.49674413]
[1734977448920,0.053471,93615.0,93609.0,0.13474413]
[1734977449207,0.3608,93633.0,93614.0,0.3608]
[1734977449208,0.053468,93621.0,93614.0,0.3608]
[1734977449407,0.3608,93636.0,93615.0,0.1243]
[1734977449607,0.3608,93636.0,93621.0,0.053467]
[1734977449811,0.3608,93636.0,93615.0,0.1243]
[1734977449812,0.053462,93631.0,93622.0,0.3608]
[1734977450007,0.053462,93631.0,93628.0,0.053463]
[1734977450205,0.3608,93636.0,93627.0,0.053464]
[1734977450398,0.053463,93629.0,93622.0,0.3608]
[1734977450600,0.3608,93636.0,93615.0,0.13574353]